Workbook

Sheet Instructions

Sheet Meta data_sheet
A1: Ambient Monitoring Station | B1: Details | D1: Ambient Monitoring Results | E1: Details
A2: Location | B2: Werris Creek | D2: PM2.5 monitoring start (dd/mm/yyyy hh:mm) | E2: 2020-04-01
A3: Easting | B3: =VLOOKUP($B$2,'Meta data_lookup'!$A$2:$D$5,2,FALSE) -> 276783 | D3: PM2.5 monitoring end | E3: 2020-05-01
A4: Northing | B4: =VLOOKUP($B$2,'Meta data_lookup'!$A$2:$D$5,3,FALSE) -> 6528734 | D4: PM2.5 monitoring period (h) | E4: =(E3-E2)*24 -> 720
A5: Site elevation (m) | B5: =VLOOKUP($B$2,'Meta data_lookup'!$A$2:$D$5,4,FALSE) -> ND | D5: Number of valid PM2.5 results | E5: =COUNTIF('Raw data_sheet'!G2:G745,"Valid") -> 563
A6: Description of surrounding land use | B6: Agriculture/Mining | D6: Proportion of valid PM2.5 results (%) | E6: =E5/E4 -> 0.7819444444
A7: Typical sources impacting on the site | B7: Agriculture | D7: PM10 monitoring start (dd/mm/yyyy hh:mm) | E7: 2020-04-01
A8: Site compliance with AS/NZS 3580.1.1:2007 | B8: Yes | D8: PM10 monitoring end | E8: 2020-05-01
A9: PM2.5 method compliance with AS/NZS 3580.9.13:2013 | B9: Yes | D9: PM10 monitoring period (h) | E9: =(E8-E7)*24 -> 720
A10: PM2.5 instrument make | B10: Thermo Scientific | D10: Number of valid PM10 results | E10: =COUNTIF('Raw data_sheet'!J2:J745,"Valid") -> 563
A11: PM2.5 instrument model | B11: 1405DF | D11: Proportion of valid PM10 results (%) | E11: =E10/E9 -> 0.7819444444
A12: PM2.5 instrument intake height (m) | B12: 3.5
A13: PM10 method compliance with AS 3580.9.8-2008 | B13: No*
A14: PM10 instrument make | B14: Thermo Scientific
A15: PM10 instrument model | B15: 1405DF
A16: PM10 instrument intake height (m) | B16: 3.5
A17: *The 1405DF TEOM used at this site measures PM10 indirectly rather than directly. The unit does however meet the intent of AS 3580.9.8-2008, and this method has been accredited by the USEPA. It is considered scientifically robust and is used extensively throughout NSW with EPA's knowledge and informal acceptance.

Sheet Meta data_lookup
A1: Location | B1: Easting | C1: Northing | D1: Site elevation (m)
A2: Maules Creek | B2: 225302 | C2: 6623037 | D2: ND
A3: Breeza | B3: 237993 | C3: 6542606 | D3: ND
A4: Will-gai | B4: 231804 | C4: 6596392 | D4: ND
A5: Werris Creek | B5: 276783 | C5: 6528734 | D5: ND

Sheet Raw data_sheet
A1: Year | B1: Month | C1: Day | D1: Hour | E1: Date and time | F1: PM2.5_hourly | G1: PM2.5_Data_Status | H1: PM2.5_24hr_rolling_average | I1: PM10_hourly | J1: PM10_Data_Status | K1: PM10_24hr_rolling_average | L1: Cause of data invalidity, if applicable | M1: Detailed comments | N1: PM2.5_hourly_valid_plot | O1: PM2.5_24hr_rolling_ave_valid_plot | P1: PM10_hourly_valid_plot | Q1: PM10_24hr_rolling_ave_valid_plot | R1: PM10_hourly_valid_plot_series | S1: PM10_24hr_rolling_average_valid_plot_series | T1: PM2.5_hourly_valid_plot_series | U1: PM2.5_24hr_rolling_average_valid_plot_series
A2: 2020 | B2: 4 | C2: 1 | D2: 0 | E2: =DATE(A2,B2,C2)+TIME(D2,0,0) -> 43922 | F2: 10.1 | G2: Valid | H2: 7.5 | I2: 11.3 | J2: Valid | K2: 9 | N2: =IF(G2="Valid", F2, NA()) -> 10.1 | O2: =IF(G2="Valid", H2, NA()) -> 7.5 | P2: =IF(J2="Valid", I2, NA()) -> 11.3 | Q2: =IF(J2="Valid", K2, NA()) -> 9 | R2: 11.3 | S2: 9 | T2: 10.1 | U2: 7.5
A3: =A2 -> 2020 | B3: =B2 -> 4 | C3: =C2 -> 1 | D3: =IF(D2=23,0,D2+1) -> 1 | E3: =E2+0.0416666666666666 -> 43922.04167 | F3: 18.8 | G3: Valid | H3: 7.9 | I3: 30.6 | J3: Valid | K3: 9.9 | N3: 18.8 | O3: 7.9 | P3: 30.6 | Q3: 9.9 | R3: 30.6 | S3: 9.9 | T3: 18.8 | U3: 7.9
A4: =A3 -> 2020 | B4: =B3 -> 4 | C4: 1 | D4: =IF(D3=23,0,D3+1) -> 2 | E4: =E3+0.0416666666666666 -> 43922.08333 | F4: 20.7 | G4: Valid | H4: 8.3 | I4: 59.4 | J4: Valid | K4: 12 | N4: 20.7 | O4: 8.3 | P4: 59.4 | Q4: 12 | R4: 59.4 | S4: 12 | T4: 20.7 | U4: 8.3
A5: 2020 | B5: 4 | C5: 1 | D5: 3 | E5: 43922.125 | F5: 13.3 | G5: Valid | H5: 8.6 | I5: 29.8 | J5: Valid | K5: 13 | N5: 13.3 | O5: 8.6 | P5: 29.8 | Q5: 13 | R5: 29.8 | S5: 13 | T5: 13.3 | U5: 8.6
A6: 2020 | B6: 4 | C6: 1 | D6: 4 | E6: 43922.16667 | F6: 20.6 | G6: Valid | H6: 9.4 | I6: 28 | J6: Valid | K6: 14.1 | N6: 20.6 | O6: 9.4 | P6: 28 | Q6: 14.1 | R6: 28 | S6: 14.1 | T6: 20.6 | U6: 9.4
A7: 2020 | B7: 4 | C7: 1 | D7: 5 | E7: 43922.20833 | F7: 29.9 | G7: Valid | H7: 10.6 | I7: 55.9 | J7: Valid | K7: 16.4 | N7: 29.9 | O7: 10.6 | P7: 55.9 | Q7: 16.4 | R7: 55.9 | S7: 16.4 | T7: 29.9 | U7: 10.6
A8: 2020 | B8: 4 | C8: 1 | D8: 6 | E8: 43922.25 | F8: 21 | G8: Valid | H8: 11.4 | I8: 56.9 | J8: Valid | K8: 18.8 | N8: 21 | O8: 11.4 | P8: 56.9 | Q8: 18.8 | R8: 56.9 | S8: 18.8 | T8: 21 | U8: 11.4
A9: 2020 | B9: 4 | C9: 1 | D9: 7 | E9: 43922.29167 | F9: 30.9 | G9: Valid | H9: 11.9 | I9: 43.9 | J9: Valid | K9: 19.9 | N9: 30.9 | O9: 11.9 | P9: 43.9 | Q9: 19.9 | R9: 43.9 | S9: 19.9 | T9: 30.9 | U9: 11.9
A10: 2020 | B10: 4 | C10: 1 | D10: 8 | E10: 43922.33333 | F10: 19.8 | G10: Valid | H10: 12.4 | I10: 30.4 | J10: Valid | K10: 20.8 | N10: 19.8 | O10: 12.4 | P10: 30.4 | Q10: 20.8 | R10: 30.4 | S10: 20.8 | T10: 19.8 | U10: 12.4
A11: 2020 | B11: 4 | C11: 1 | D11: 9 | E11: 43922.375 | F11: 19.5 | G11: Valid | H11: 13 | I11: 22.9 | J11: Valid | K11: 21.5 | N11: 19.5 | O11: 13 | P11: 22.9 | Q11: 21.5 | R11: 22.9 | S11: 21.5 | T11: 19.5 | U11: 13
A12: 2020 | B12: 4 | C12: 1 | D12: 10 | E12: 43922.41667 | F12: 14.7 | G12: Valid | H12: 13.3 | I12: 17.8 | J12: Valid | K12: 22 | N12: 14.7 | O12: 13.3 | P12: 17.8 | Q12: 22 | R12: 17.8 | S12: 22 | T12: 14.7 | U12: 13.3
A13: 2020 | B13: 4 | C13: 1 | D13: 11 | E13: 43922.45833 | F13: 18.1 | G13: Valid | H13: 13.9 | I13: 19.8 | J13: Valid | K13: 22.7 | N13: 18.1 | O13: 13.9 | P13: 19.8 | Q13: 22.7 | R13: 19.8 | S13: 22.7 | T13: 18.1 | U13: 13.9
A14: 2020 | B14: 4 | C14: 1 | D14: 12 | E14: 43922.5 | F14: 11.1 | G14: Valid | H14: 13.8 | I14: 12.5 | J14: Valid | K14: 22.2 | N14: 11.1 | O14: 13.8 | P14: 12.5 | Q14: 22.2 | R14: 12.5 | S14: 22.2 | T14: 11.1 | U14: 13.8
A15: 2020 | B15: 4 | C15: 1 | D15: 13 | E15: 43922.54167 | F15: 10.8 | G15: Valid | H15: 13.6 | I15: 12.4 | J15: Valid | K15: 21.8 | N15: 10.8 | O15: 13.6 | P15: 12.4 | Q15: 21.8 | R15: 12.4 | S15: 21.8 | T15: 10.8 | U15: 13.6
A16: 2020 | B16: 4 | C16: 1 | D16: 14 | E16: 43922.58333 | F16: 21.3 | G16: Valid | H16: 15.5 | I16: 22.6 | J16: Valid | K16: 24.3 | N16: 21.3 | O16: 15.5 | P16: 22.6 | Q16: 24.3 | R16: 22.6 | S16: 24.3 | T16: 21.3 | U16: 15.5
A17: 2020 | B17: 4 | C17: 1 | D17: 15 | E17: 43922.625 | F17: 19.3 | G17: Valid | H17: 16 | I17: 21.4 | J17: Valid | K17: 24.8 | N17: 19.3 | O17: 16 | P17: 21.4 | Q17: 24.8 | R17: 21.4 | S17: 24.8 | T17: 19.3 | U17: 16
A18: 2020 | B18: 4 | C18: 1 | D18: 16 | E18: 43922.66667 | F18: 25.7 | G18: Valid | H18: 16.6 | I18: 27.6 | J18: Valid | K18: 25.3 | N18: 25.7 | O18: 16.6 | P18: 27.6 | Q18: 25.3 | R18: 27.6 | S18: 25.3 | T18: 25.7 | U18: 16.6
A19: 2020 | B19: 4 | C19: 1 | D19: 17 | E19: 43922.70833 | F19: 4.3 | G19: Valid | H19: 15.9 | I19: 5.5 | J19: Valid | K19: 24.6 | N19: 4.3 | O19: 15.9 | P19: 5.5 | Q19: 24.6 | R19: 5.5 | S19: 24.6 | T19: 4.3 | U19: 15.9
A20: 2020 | B20: 4 | C20: 1 | D20: 18 | E20: 43922.75 | F20: 4.7 | G20: Valid | H20: 15.2 | I20: 6 | J20: Valid | K20: 23.9 | N20: 4.7 | O20: 15.2 | P20: 6 | Q20: 23.9 | R20: 6 | S20: 23.9 | T20: 4.7 | U20: 15.2
A21: 2020 | B21: 4 | C21: 1 | D21: 19 | E21: 43922.79167 | F21: 13.5 | G21: Valid | H21: 15.5 | I21: 17.1 | J21: Valid | K21: 23.8 | N21: 13.5 | O21: 15.5 | P21: 17.1 | Q21: 23.8 | R21: 17.1 | S21: 23.8 | T21: 13.5 | U21: 15.5
A22: 2020 | B22: 4 | C22: 1 | D22: 20 | E22: 43922.83333 | F22: 11.9 | G22: Valid | H22: 15.7 | I22: 13.8 | J22: Valid | K22: 23.7 | N22: 11.9 | O22: 15.7 | P22: 13.8 | Q22: 23.7 | R22: 13.8 | S22: 23.7 | T22: 11.9 | U22: 15.7
A23: 2020 | B23: 4 | C23: 1 | D23: 21 | E23: 43922.875 | F23: 16.9 | G23: Valid | H23: 15.9 | I23: 20.4 | J23: Valid | K23: 24 | N23: 16.9 | O23: 15.9 | P23: 20.4 | Q23: 24 | R23: 20.4 | S23: 24 | T23: 16.9 | U23: 15.9
A24: 2020 | B24: 4 | C24: 1 | D24: 22 | E24: 43922.91667 | F24: 12.1 | G24: Valid | H24: 16.3 | I24: 13.9 | J24: Valid | K24: 24.4 | N24: 12.1 | O24: 16.3 | P24: 13.9 | Q24: 24.4 | R24: 13.9 | S24: 24.4 | T24: 12.1 | U24: 16.3
A25: 2020 | B25: =B24 -> 4 | C25: =C24 -> 1 | D25: 23 | E25: 43922.95833 | F25: 19.7 | G25: Valid | H25: 17 | I25: 20.4 | J25: Valid | K25: 25.1 | N25: 19.7 | O25: 17 | P25: 20.4 | Q25: 25.1 | R25: 20.4 | S25: 25.1 | T25: 19.7 | U25: 17
A26: 2020 | B26: =B25 -> 4 | C26: =C2+1 -> 2 | D26: 0 | E26: 43923 | F26: 13.1 | G26: Valid | H26: 17.2 | I26: 15 | J26: Valid | K26: 25.3 | N26: 13.1 | O26: 17.2 | P26: 15 | Q26: 25.3 | R26: 15 | S26: 25.3 | T26: 13.1 | U26: 17.2
A27: 2020 | B27: =B26 -> 4 | C27: =C3+1 -> 2 | D27: 1 | E27: 43923.04167 | F27: 12.5 | G27: Valid | H27: 16.9 | I27: 14.1 | J27: Valid | K27: 24.6 | N27: 12.5 | O27: 16.9 | P27: 14.1 | Q27: 24.6 | R27: 14.1 | S27: 24.6 | T27: 12.5 | U27: 16.9
A28: 2020 | B28: 4 | C28: 2 | D28: 2 | E28: 43923.08333 | F28: 18.7 | G28: Valid | H28: 16.8 | I28: 20.4 | J28: Valid | K28: 22.9 | N28: 18.7 | O28: 16.8 | P28: 20.4 | Q28: 22.9 | R28: 20.4 | S28: 22.9 | T28: 18.7 | U28: 16.8
A29: 2020 | B29: 4 | C29: 2 | D29: 3 | E29: 43923.125 | F29: 14.6 | G29: Valid | H29: 16.8 | I29: 15.5 | J29: Valid | K29: 22.3 | N29: 14.6 | O29: 16.8 | P29: 15.5 | Q29: 22.3 | R29: 15.5 | S29: 22.3 | T29: 14.6 | U29: 16.8
A30: 2020 | B30: 4 | C30: 2 | D30: 4 | E30: 43923.16667 | F30: 18.6 | G30: Valid | H30: 16.7 | I30: 18.9 | J30: Valid | K30: 21.8 | N30: 18.6 | O30: 16.7 | P30: 18.9 | Q30: 21.8 | R30: 18.9 | S30: 21.8 | T30: 18.6 | U30: 16.7
A31: 2020 | B31: 4 | C31: 2 | D31: 5 | E31: 43923.20833 | F31: 19.7 | G31: Valid | H31: 16.3 | I31: 20.3 | J31: Valid | K31: 20.3 | N31: 19.7 | O31: 16.3 | P31: 20.3 | Q31: 20.3 | R31: 20.3 | S31: 20.3 | T31: 19.7 | U31: 16.3
A32: 2020 | B32: 4 | C32: 2 | D32: 6 | E32: 43923.25 | F32: 15.8 | G32: Valid | H32: 16 | I32: 15.9 | J32: Valid | K32: 18.5 | N32: 15.8 | O32: 16 | P32: 15.9 | Q32: 18.5 | R32: 15.9 | S32: 18.5 | T32: 15.8 | U32: 16
A33: 2020 | B33: 4 | C33: 2 | D33: 7 | E33: 43923.29167 | F33: 19.5 | G33: Valid | H33: 15.5 | I33: 19.5 | J33: Valid | K33: 17.5 | N33: 19.5 | O33: 15.5 | P33: 19.5 | Q33: 17.5 | R33: 19.5 | S33: 17.5 | T33: 19.5 | U33: 15.5
A34: 2020 | B34: 4 | C34: 2 | D34: 8 | E34: 43923.33333 | F34: 18 | G34: Valid | H34: 15.5 | I34: 20 | J34: Valid | K34: 17.1 | N34: 18 | O34: 15.5 | P34: 20 | Q34: 17.1 | R34: 20 | S34: 17.1 | T34: 18 | U34: 15.5
A35: 2020 | B35: 4 | C35: 2 | D35: 9 | E35: 43923.375 | F35: 20.6 | G35: Valid | H35: 15.6 | I35: 22.3 | J35: Valid | K35: 17.2 | N35: 20.6 | O35: 15.6 | P35: 22.3 | Q35: 17.2 | R35: 22.3 | S35: 17.2 | T35: 20.6 | U35: 15.6
A36: 2020 | B36: 4 | C36: 2 | D36: 10 | E36: 43923.41667 | F36: 8.1 | G36: Valid | H36: 15.4 | I36: 13.3 | J36: Valid | K36: 17.1 | N36: 8.1 | O36: 15.4 | P36: 13.3 | Q36: 17.1 | R36: 13.3 | S36: 17.1 | T36: 8.1 | U36: 15.4
A37: 2020 | B37: 4 | C37: 2 | D37: 11 | E37: 43923.45833 | F37: 18.1 | G37: Valid | H37: 15.5 | I37: 20.3 | J37: Valid | K37: 17.1 | N37: 18.1 | O37: 15.5 | P37: 20.3 | Q37: 17.1 | R37: 20.3 | S37: 17.1 | T37: 18.1 | U37: 15.5
A38: 2020 | B38: 4 | C38: 2 | D38: 12 | E38: 43923.5 | F38: 16.8 | G38: Valid | H38: 15.8 | I38: 19.2 | J38: Valid | K38: 17.5 | N38: 16.8 | O38: 15.8 | P38: 19.2 | Q38: 17.5 | R38: 19.2 | S38: 17.5 | T38: 16.8 | U38: 15.8
A39: 2020 | B39: 4 | C39: 2 | D39: 13 | E39: 43923.54167 | F39: 6 | G39: Valid | H39: 15.5 | I39: 9.6 | J39: Valid | K39: 17.3 | N39: 6 | O39: 15.5 | P39: 9.6 | Q39: 17.3 | R39: 9.6 | S39: 17.3 | T39: 6 | U39: 15.5
A40: 2020 | B40: 4 | C40: 2 | D40: 14 | E40: 43923.58333 | F40: 9.2 | G40: Valid | H40: 15 | I40: 14.2 | J40: Valid | K40: 17 | N40: 9.2 | O40: 15 | P40: 14.2 | Q40: 17 | R40: 14.2 | S40: 17 | T40: 9.2 | U40: 15
A41: 2020 | B41: 4 | C41: 2 | D41: 15 | E41: 43923.625 | F41: 11.7 | G41: Valid | H41: 14.6 | I41: 20.7 | J41: Valid | K41: 16.8 | N41: 11.7 | O41: 14.6 | P41: 20.7 | Q41: 16.8 | R41: 20.7 | S41: 16.8 | T41: 11.7 | U41: 14.6
A42: 2020 | B42: 4 | C42: 2 | D42: 16 | E42: 43923.66667 | F42: 18.8 | G42: Valid | H42: 14.3 | I42: 21.5 | J42: Valid | K42: 16.6 | N42: 18.8 | O42: 14.3 | P42: 21.5 | Q42: 16.6 | R42: 21.5 | S42: 16.6 | T42: 18.8 | U42: 14.3
A43: 2020 | B43: 4 | C43: 2 | D43: 17 | E43: 43923.70833 | F43: 17.1 | G43: Valid | H43: 14.8 | I43: 18 | J43: Valid | K43: 17 | N43: 17.1 | O43: 14.8 | P43: 18 | Q43: 17 | R43: 18 | S43: 17 | T43: 17.1 | U43: 14.8
A44: 2020 | B44: 4 | C44: 2 | D44: 18 | E44: 43923.75 | F44: =NA() ->  | G44: Invalid | H44: =-NA() ->  | I44: =NA() ->  | J44: Invalid | K44: =NA() ->  | L44: Calibration Error | M44: value outside range
A45: 2020 | B45: 4 | C45: 2 | D45: 19 | E45: 43923.79167 | F45: =NA() ->  | G45: Invalid | H45: =-NA() ->  | I45: =NA() ->  | J45: Invalid | K45: =NA() ->  | L45: Calibration Error | M45: value outside range
A46: 2020 | B46: 4 | C46: 2 | D46: 20 | E46: 43923.83333 | F46: =NA() ->  | G46: Invalid | H46: =-NA() ->  | I46: =NA() ->  | J46: Invalid | K46: =NA() ->  | L46: Calibration Error | M46: value outside range
A47: 2020 | B47: 4 | C47: 2 | D47: 21 | E47: 43923.875 | F47: =NA() ->  | G47: Invalid | H47: =-NA() ->  | I47: =NA() ->  | J47: Invalid | K47: =NA() ->  | L47: Calibration Error | M47: value outside range
A48: 2020 | B48: 4 | C48: 2 | D48: 22 | E48: 43923.91667 | F48: =NA() ->  | G48: Invalid | H48: =-NA() ->  | I48: =NA() ->  | J48: Invalid | K48: =NA() ->  | L48: Calibration Error | M48: value outside range
A49: 2020 | B49: 4 | C49: 2 | D49: 23 | E49: 43923.95833 | F49: =NA() ->  | G49: Invalid | H49: =-NA() ->  | I49: =NA() ->  | J49: Invalid | K49: =NA() ->  | L49: Calibration Error | M49: value outside range
A50: 2020 | B50: 4 | C50: 3 | D50: 0 | E50: 43924 | F50: =NA() ->  | G50: Invalid | H50: =-NA() ->  | I50: =NA() ->  | J50: Invalid | K50: =NA() ->  | L50: Calibration Error | M50: value outside range
A51: 2020 | B51: 4 | C51: 3 | D51: 1 | E51: 43924.04167 | F51: 13.7 | G51: Valid | H51: 16.2 | I51: 14.5 | J51: Valid | K51: 17.5 | N51: 13.7 | O51: 16.2 | P51: 14.5 | Q51: 17.5 | R51: 14.5 | S51: 17.5 | T51: 13.7 | U51: 16.2
A52: 2020 | B52: 4 | C52: 3 | D52: 2 | E52: 43924.08333 | F52: 13.6 | G52: Valid | H52: 16 | I52: 15.9 | J52: Valid | K52: 17.3 | N52: 13.6 | O52: 16 | P52: 15.9 | Q52: 17.3 | R52: 15.9 | S52: 17.3 | T52: 13.6 | U52: 16
A53: 2020 | B53: 4 | C53: 3 | D53: 3 | E53: 43924.125 | F53: 14 | G53: Valid | H53: 16 | I53: 17.5 | J53: Valid | K53: 17.4 | N53: 14 | O53: 16 | P53: 17.5 | Q53: 17.4 | R53: 17.5 | S53: 17.4 | T53: 14 | U53: 16
A54: 2020 | B54: 4 | C54: 3 | D54: 4 | E54: 43924.16667 | F54: 10.4 | G54: Valid | H54: 15.6 | I54: 15.1 | J54: Valid | K54: 17.2 | N54: 10.4 | O54: 15.6 | P54: 15.1 | Q54: 17.2 | R54: 15.1 | S54: 17.2 | T54: 10.4 | U54: 15.6
A55: 2020 | B55: 4 | C55: 3 | D55: 5 | E55: 43924.20833 | F55: 17.1 | G55: Valid | H55: 15.5 | I55: 22.2 | J55: Valid | K55: 17.3 | N55: 17.1 | O55: 15.5 | P55: 22.2 | Q55: 17.3 | R55: 22.2 | S55: 17.3 | T55: 17.1 | U55: 15.5
A56: 2020 | B56: 4 | C56: 3 | D56: 6 | E56: 43924.25 | F56: 13.4 | G56: Valid | H56: 15.4 | I56: 18.9 | J56: Valid | K56: 17.4 | N56: 13.4 | O56: 15.4 | P56: 18.9 | Q56: 17.4 | R56: 18.9 | S56: 17.4 | T56: 13.4 | U56: 15.4
A57: 2020 | B57: 4 | C57: 3 | D57: 7 | E57: 43924.29167 | F57: 6.7 | G57: Valid | H57: 14.8 | I57: 11.2 | J57: Valid | K57: 17 | N57: 6.7 | O57: 14.8 | P57: 11.2 | Q57: 17 | R57: 11.2 | S57: 17 | T57: 6.7 | U57: 14.8
A58: 2020 | B58: 4 | C58: 3 | D58: 8 | E58: 43924.33333 | F58: 4.8 | G58: Valid | H58: 14.3 | I58: 7.1 | J58: Valid | K58: 16.5 | N58: 4.8 | O58: 14.3 | P58: 7.1 | Q58: 16.5 | R58: 7.1 | S58: 16.5 | T58: 4.8 | U58: 14.3
A59: 2020 | B59: 4 | C59: 3 | D59: 9 | E59: 43924.375 | F59: 20.6 | G59: Valid | H59: 14.4 | I59: 21.3 | J59: Valid | K59: 16.6 | N59: 20.6 | O59: 14.4 | P59: 21.3 | Q59: 16.6 | R59: 21.3 | S59: 16.6 | T59: 20.6 | U59: 14.4
A60: 2020 | B60: 4 | C60: 3 | D60: 10 | E60: 43924.41667 | F60: 24.9 | G60: Valid | H60: 15.2 | I60: 27.9 | J60: Valid | K60: 17.3 | N60: 24.9 | O60: 15.2 | P60: 27.9 | Q60: 17.3 | R60: 27.9 | S60: 17.3 | T60: 24.9 | U60: 15.2
A61: 2020 | B61: 4 | C61: 3 | D61: 11 | E61: 43924.45833 | F61: 0.4 | G61: Valid | H61: 14.5 | I61: 6.7 | J61: Valid | K61: 16.7 | N61: 0.4 | O61: 14.5 | P61: 6.7 | Q61: 16.7 | R61: 6.7 | S61: 16.7 | T61: 0.4 | U61: 14.5
A62: 2020 | B62: 4 | C62: 3 | D62: 12 | E62: 43924.5 | F62: 4.6 | G62: Valid | H62: 13.9 | I62: 9.1 | J62: Valid | K62: 16.3 | N62: 4.6 | O62: 13.9 | P62: 9.1 | Q62: 16.3 | R62: 9.1 | S62: 16.3 | T62: 4.6 | U62: 13.9
A63: 2020 | B63: 4 | C63: 3 | D63: 13 | E63: 43924.54167 | F63: 14.8 | G63: Valid | H63: 14.3 | I63: 20.9 | J63: Valid | K63: 16.7 | N63: 14.8 | O63: 14.3 | P63: 20.9 | Q63: 16.7 | R63: 20.9 | S63: 16.7 | T63: 14.8 | U63: 14.3
A64: 2020 | B64: 4 | C64: 3 | D64: 14 | E64: 43924.58333 | F64: 12.1 | G64: Valid | H64: 14.4 | I64: 17.5 | J64: Valid | K64: 16.9 | N64: 12.1 | O64: 14.4 | P64: 17.5 | Q64: 16.9 | R64: 17.5 | S64: 16.9 | T64: 12.1 | U64: 14.4
A65: 2020 | B65: 4 | C65: 3 | D65: 15 | E65: 43924.625 | F65: =NA() ->  | G65: Invalid | H65: =NA() ->  | I65: =NA() ->  | J65: Invalid | K65: =NA() ->  | L65: Calibration Error | M65: value outside range
A66: 2020 | B66: 4 | C66: 3 | D66: 16 | E66: 43924.66667 | F66: =NA() ->  | G66: Invalid | H66: =NA() ->  | I66: =NA() ->  | J66: Invalid | K66: =NA() ->  | L66: Calibration Error | M66: value outside range | N66: =IF(G66="Valid", F66, NA()) ->  | O66: =IF(G66="Valid", H66, NA()) ->  | P66: =IF(J66="Valid", I66, NA()) ->  | Q66: =IF(J66="Valid", K66, NA()) -> 
A67: 2020 | B67: 4 | C67: 3 | D67: 17 | E67: 43924.70833 | F67: =NA() ->  | G67: Invalid | H67: =NA() ->  | I67: =NA() ->  | J67: Invalid | K67: =NA() ->  | L67: Calibration Error | M67: value outside range
A68: =A67 -> 2020 | B68: 4 | C68: 3 | D68: =IF(D67=23,0,D67+1) -> 18 | E68: =E67+0.0416666666666666 -> 43924.75 | F68: =NA() ->  | G68: Invalid | H68: =NA() ->  | I68: =NA() ->  | J68: Invalid | K68: =NA() ->  | L68: Calibration Error | M68: value outside range
A69: 2020 | B69: 4 | C69: 3 | D69: 19 | E69: 43924.79167 | F69: =NA() ->  | G69: Invalid | H69: =NA() ->  | I69: =NA() ->  | J69: Invalid | K69: =NA() ->  | L69: Calibration Error | M69: value outside range
A70: 2020 | B70: 4 | C70: 3 | D70: 20 | E70: 43924.83333 | F70: =NA() ->  | G70: Invalid | H70: =NA() ->  | I70: =NA() ->  | J70: Invalid | K70: =NA() ->  | L70: Calibration Error | M70: value outside range
A71: 2020 | B71: 4 | C71: 3 | D71: 21 | E71: 43924.875 | F71: =NA() ->  | G71: Invalid | H71: =NA() ->  | I71: =NA() ->  | J71: Invalid | K71: =NA() ->  | L71: Calibration Error | M71: value outside range
A72: 2020 | B72: 4 | C72: 3 | D72: 22 | E72: 43924.91667 | F72: =NA() ->  | G72: Invalid | H72: =NA() ->  | I72: =NA() ->  | J72: Invalid | K72: =NA() ->  | L72: Calibration Error | M72: value outside range
A73: 2020 | B73: 4 | C73: 3 | D73: 23 | E73: 43924.95833 | F73: =NA() ->  | G73: Invalid | H73: =NA() ->  | I73: =NA() ->  | J73: Invalid | K73: =NA() ->  | L73: Calibration Error | M73: value outside range
A74: 2020 | B74: 4 | C74: 4 | D74: 0 | E74: 43925 | F74: =NA() ->  | G74: Invalid | H74: =NA() ->  | I74: =NA() ->  | J74: Invalid | K74: =NA() ->  | L74: Calibration Error | M74: value outside range
A75: 2020 | B75: 4 | C75: 4 | D75: 1 | E75: 43925.04167 | F75: =NA() ->  | G75: Invalid | H75: =NA() ->  | I75: =NA() ->  | J75: Invalid | K75: =NA() ->  | L75: Calibration Error | M75: value outside range
A76: 2020 | B76: 4 | C76: 4 | D76: 2 | E76: 43925.08333 | F76: =NA() ->  | G76: Invalid | H76: =NA() ->  | I76: =NA() ->  | J76: Invalid | K76: =NA() ->  | L76: Calibration Error | M76: value outside range
A77: 2020 | B77: 4 | C77: 4 | D77: 3 | E77: 43925.125 | F77: =NA() ->  | G77: Invalid | H77: =NA() ->  | I77: =NA() ->  | J77: Invalid | K77: =NA() ->  | L77: Calibration Error | M77: value outside range
A78: 2020 | B78: 4 | C78: 4 | D78: 4 | E78: 43925.16667 | F78: =NA() ->  | G78: Invalid | H78: =NA() ->  | I78: =NA() ->  | J78: Invalid | K78: =NA() ->  | L78: Calibration Error | M78: value outside range
A79: 2020 | B79: 4 | C79: 4 | D79: 5 | E79: 43925.20833 | F79: =NA() ->  | G79: Invalid | H79: =NA() ->  | I79: =NA() ->  | J79: Invalid | K79: =NA() ->  | L79: Calibration Error | M79: value outside range
A80: 2020 | B80: 4 | C80: 4 | D80: 6 | E80: 43925.25 | F80: =NA() ->  | G80: Invalid | H80: =NA() ->  | I80: =NA() ->  | J80: Invalid | K80: =NA() ->  | L80: Calibration Error | M80: value outside range
A81: 2020 | B81: 4 | C81: 4 | D81: 7 | E81: 43925.29167 | F81: =NA() ->  | G81: Invalid | H81: =NA() ->  | I81: =NA() ->  | J81: Invalid | K81: =NA() ->  | L81: Calibration Error | M81: value outside range
A82: 2020 | B82: 4 | C82: 4 | D82: 8 | E82: 43925.33333 | F82: =NA() ->  | G82: Invalid | H82: =NA() ->  | I82: =NA() ->  | J82: Invalid | K82: =NA() ->  | L82: Calibration Error | M82: value outside range
A83: 2020 | B83: 4 | C83: 4 | D83: 9 | E83: 43925.375 | F83: =NA() ->  | G83: Invalid | H83: =NA() ->  | I83: =NA() ->  | J83: Invalid | K83: =NA() ->  | L83: Calibration Error | M83: value outside range
A84: 2020 | B84: 4 | C84: 4 | D84: 10 | E84: 43925.41667 | F84: 8.2 | G84: Valid | H84: 9 | I84: 8.7 | J84: Valid | K84: 9.1 | N84: 8.2 | O84: 9 | P84: 8.7 | Q84: 9.1 | R84: 8.7 | S84: 9.1 | T84: 8.2 | U84: 9
A85: 2020 | B85: 4 | C85: 4 | D85: 11 | E85: 43925.45833 | F85: 8.8 | G85: Valid | H85: 9.4 | I85: 11.9 | J85: Valid | K85: 9.4 | N85: 8.8 | O85: 9.4 | P85: 11.9 | Q85: 9.4 | R85: 11.9 | S85: 9.4 | T85: 8.8 | U85: 9.4
A86: 2020 | B86: 4 | C86: 4 | D86: 12 | E86: 43925.5 | F86: 22.2 | G86: Valid | H86: 10.2 | I86: 43.2 | J86: Valid | K86: 10.8 | N86: 22.2 | O86: 10.2 | P86: 43.2 | Q86: 10.8 | R86: 43.2 | S86: 10.8 | T86: 22.2 | U86: 10.2
A87: 2020 | B87: 4 | C87: 4 | D87: 13 | E87: 43925.54167 | F87: 12.5 | G87: Valid | H87: 10 | I87: 37.8 | J87: Valid | K87: 11.4 | N87: 12.5 | O87: 10 | P87: 37.8 | Q87: 11.4 | R87: 37.8 | S87: 11.4 | T87: 12.5 | U87: 10
A88: 2020 | B88: 4 | C88: 4 | D88: 14 | E88: 43925.58333 | F88: 7.1 | G88: Valid | H88: 9.8 | I88: 37.8 | J88: Valid | K88: 12.3 | N88: 7.1 | O88: 9.8 | P88: 37.8 | Q88: 12.3 | R88: 37.8 | S88: 12.3 | T88: 7.1 | U88: 9.8
A89: 2020 | B89: 4 | C89: 4 | D89: 15 | E89: 43925.625 | F89: 12.6 | G89: Valid | H89: 9.9 | I89: 89.6 | J89: Valid | K89: 15.6 | N89: 12.6 | O89: 9.9 | P89: 89.6 | Q89: 15.6 | R89: 89.6 | S89: 15.6 | T89: 12.6 | U89: 9.9
A90: 2020 | B90: 4 | C90: 4 | D90: 16 | E90: 43925.66667 | F90: 6.2 | G90: Valid | H90: 9.7 | I90: 27.8 | J90: Valid | K90: 16.4 | N90: 6.2 | O90: 9.7 | P90: 27.8 | Q90: 16.4 | R90: 27.8 | S90: 16.4 | T90: 6.2 | U90: 9.7
A91: 2020 | B91: =B90 -> 4 | C91: =C67+1 -> 4 | D91: 17 | E91: 43925.70833 | F91: 14.1 | G91: Valid | H91: 9.9 | I91: 18.2 | J91: Valid | K91: 16.8 | N91: 14.1 | O91: 9.9 | P91: 18.2 | Q91: 16.8 | R91: 18.2 | S91: 16.8 | T91: 14.1 | U91: 9.9
A92: 2020 | B92: 4 | C92: 4 | D92: 18 | E92: 43925.75 | F92: 5.8 | G92: Valid | H92: 9.7 | I92: 8.1 | J92: Valid | K92: 16.7 | N92: 5.8 | O92: 9.7 | P92: 8.1 | Q92: 16.7 | R92: 8.1 | S92: 16.7 | T92: 5.8 | U92: 9.7
A93: 2020 | B93: 4 | C93: 4 | D93: 19 | E93: 43925.79167 | F93: 0.1 | G93: Valid | H93: 9.1 | I93: 3 | J93: Valid | K93: 16.2 | N93: 0.1 | O93: 9.1 | P93: 3 | Q93: 16.2 | R93: 3 | S93: 16.2 | T93: 0.1 | U93: 9.1
A94: 2020 | B94: 4 | C94: 4 | D94: 20 | E94: 43925.83333 | F94: 5.3 | G94: Valid | H94: 8.9 | I94: 8 | J94: Valid | K94: 16.1 | N94: 5.3 | O94: 8.9 | P94: 8 | Q94: 16.1 | R94: 8 | S94: 16.1 | T94: 5.3 | U94: 8.9
A95: 2020 | B95: 4 | C95: 4 | D95: 21 | E95: 43925.875 | F95: 7 | G95: Valid | H95: 8.8 | I95: 9.3 | J95: Valid | K95: 16.1 | N95: 7 | O95: 8.8 | P95: 9.3 | Q95: 16.1 | R95: 9.3 | S95: 16.1 | T95: 7 | U95: 8.8
A96: 2020 | B96: 4 | C96: 4 | D96: 22 | E96: 43925.91667 | F96: 23.4 | G96: Valid | H96: 9.4 | I96: 25.7 | J96: Valid | K96: 16.8 | N96: 23.4 | O96: 9.4 | P96: 25.7 | Q96: 16.8 | R96: 25.7 | S96: 16.8 | T96: 23.4 | U96: 9.4
A97: 2020 | B97: 4 | C97: 4 | D97: 23 | E97: 43925.95833 | F97: 15.1 | G97: Valid | H97: 9.6 | I97: 16.5 | J97: Valid | K97: 17.1 | N97: 15.1 | O97: 9.6 | P97: 16.5 | Q97: 17.1 | R97: 16.5 | S97: 17.1 | T97: 15.1 | U97: 9.6
A98: 2020 | B98: 4 | C98: 5 | D98: 0 | E98: 43926 | F98: 18.3 | G98: Valid | H98: 10 | I98: 19.3 | J98: Valid | K98: 17.6 | N98: 18.3 | O98: 10 | P98: 19.3 | Q98: 17.6 | R98: 19.3 | S98: 17.6 | T98: 18.3 | U98: 10
A99: 2020 | B99: 4 | C99: 5 | D99: 1 | E99: 43926.04167 | F99: 7.2 | G99: Valid | H99: 9.7 | I99: 8.1 | J99: Valid | K99: 17.3 | N99: 7.2 | O99: 9.7 | P99: 8.1 | Q99: 17.3 | R99: 8.1 | S99: 17.3 | T99: 7.2 | U99: 9.7
A100: 2020 | B100: 4 | C100: 5 | D100: 2 | E100: 43926.08333 | F100: 11 | G100: Valid | H100: 10 | I100: 12 | J100: Valid | K100: 17.8 | N100: 11 | O100: 10 | P100: 12 | Q100: 17.8 | R100: 12 | S100: 17.8 | T100: 11 | U100: 10
A101: 2020 | B101: 4 | C101: 5 | D101: 3 | E101: 43926.125 | F101: 4.1 | G101: Valid | H101: 9.6 | I101: 5.7 | J101: Valid | K101: 17.6 | N101: 4.1 | O101: 9.6 | P101: 5.7 | Q101: 17.6 | R101: 5.7 | S101: 17.6 | T101: 4.1 | U101: 9.6
A102: 2020 | B102: 4 | C102: 5 | D102: 4 | E102: 43926.16667 | F102: 19.5 | G102: Valid | H102: 10.4 | I102: 20.6 | J102: Valid | K102: 18.4 | N102: 19.5 | O102: 10.4 | P102: 20.6 | Q102: 18.4 | R102: 20.6 | S102: 18.4 | T102: 19.5 | U102: 10.4
A103: 2020 | B103: 4 | C103: 5 | D103: 5 | E103: 43926.20833 | F103: 7.3 | G103: Valid | H103: 10.5 | I103: 8.5 | J103: Valid | K103: 18.5 | N103: 7.3 | O103: 10.5 | P103: 8.5 | Q103: 18.5 | R103: 8.5 | S103: 18.5 | T103: 7.3 | U103: 10.5
A104: 2020 | B104: 4 | C104: 5 | D104: 6 | E104: 43926.25 | F104: 13 | G104: Valid | H104: 10.5 | I104: 14.1 | J104: Valid | K104: 18.6 | N104: 13 | O104: 10.5 | P104: 14.1 | Q104: 18.6 | R104: 14.1 | S104: 18.6 | T104: 13 | U104: 10.5
A105: 2020 | B105: 4 | C105: 5 | D105: 7 | E105: 43926.29167 | F105: 6.6 | G105: Valid | H105: 10.4 | I105: 8.2 | J105: Valid | K105: 18.7 | N105: 6.6 | O105: 10.4 | P105: 8.2 | Q105: 18.7 | R105: 8.2 | S105: 18.7 | T105: 6.6 | U105: 10.4
A106: 2020 | B106: 4 | C106: 5 | D106: 8 | E106: 43926.33333 | F106: 4.8 | G106: Valid | H106: 10.4 | I106: 6.8 | J106: Valid | K106: 18.8 | N106: 4.8 | O106: 10.4 | P106: 6.8 | Q106: 18.8 | R106: 6.8 | S106: 18.8 | T106: 4.8 | U106: 10.4
A107: 2020 | B107: 4 | C107: 5 | D107: 9 | E107: 43926.375 | F107: 9.2 | G107: Valid | H107: 10.5 | I107: 10.8 | J107: Valid | K107: 19.1 | N107: 9.2 | O107: 10.5 | P107: 10.8 | Q107: 19.1 | R107: 10.8 | S107: 19.1 | T107: 9.2 | U107: 10.5
A108: 2020 | B108: 4 | C108: 5 | D108: 10 | E108: 43926.41667 | F108: 21.6 | G108: Valid | H108: 11.1 | I108: 29.2 | J108: Valid | K108: 19.9 | N108: 21.6 | O108: 11.1 | P108: 29.2 | Q108: 19.9 | R108: 29.2 | S108: 19.9 | T108: 21.6 | U108: 11.1
A109: 2020 | B109: 4 | C109: 5 | D109: 11 | E109: 43926.45833 | F109: 16.7 | G109: Valid | H109: 10.9 | I109: 32.5 | J109: Valid | K109: 19.5 | N109: 16.7 | O109: 10.9 | P109: 32.5 | Q109: 19.5 | R109: 32.5 | S109: 19.5 | T109: 16.7 | U109: 10.9
A110: 2020 | B110: 4 | C110: 5 | D110: 12 | E110: 43926.5 | F110: 21.3 | G110: Valid | H110: 11.3 | I110: 39.9 | J110: Valid | K110: 19.7 | N110: 21.3 | O110: 11.3 | P110: 39.9 | Q110: 19.7 | R110: 39.9 | S110: 19.7 | T110: 21.3 | U110: 11.3
A111: 2020 | B111: 4 | C111: 5 | D111: 13 | E111: 43926.54167 | F111: 27.2 | G111: Valid | H111: 12.2 | I111: 51.2 | J111: Valid | K111: 20.3 | N111: 27.2 | O111: 12.2 | P111: 51.2 | Q111: 20.3 | R111: 51.2 | S111: 20.3 | T111: 27.2 | U111: 12.2
A112: 2020 | B112: 4 | C112: 5 | D112: 14 | E112: 43926.58333 | F112: 9 | G112: Valid | H112: 12.1 | I112: 33.9 | J112: Valid | K112: 18.2 | N112: 9 | O112: 12.1 | P112: 33.9 | Q112: 18.2 | R112: 33.9 | S112: 18.2 | T112: 9 | U112: 12.1
A113: 2020 | B113: 4 | C113: 5 | D113: 15 | E113: 43926.625 | F113: 5.2 | G113: Valid | H113: 12.1 | I113: 24.4 | J113: Valid | K113: 18.1 | N113: 5.2 | O113: 12.1 | P113: 24.4 | Q113: 18.1 | R113: 24.4 | S113: 18.1 | T113: 5.2 | U113: 12.1
A114: 2020 | B114: 4 | C114: 5 | D114: 16 | E114: 43926.66667 | F114: 10.2 | G114: Valid | H114: 12 | I114: 30.7 | J114: Valid | K114: 18.6 | N114: 10.2 | O114: 12 | P114: 30.7 | Q114: 18.6 | R114: 30.7 | S114: 18.6 | T114: 10.2 | U114: 12
A115: 2020 | B115: 4 | C115: 5 | D115: 17 | E115: 43926.70833 | F115: 0.1 | G115: Valid | H115: 11.7 | I115: 19.7 | J115: Valid | K115: 19 | N115: 0.1 | O115: 11.7 | P115: 19.7 | Q115: 19 | R115: 19.7 | S115: 19 | T115: 0.1 | U115: 11.7
A116: 2020 | B116: 4 | C116: 5 | D116: 18 | E116: 43926.75 | F116: 9.3 | G116: Valid | H116: 12 | I116: 26.9 | J116: Valid | K116: 19.9 | N116: 9.3 | O116: 12 | P116: 26.9 | Q116: 19.9 | R116: 26.9 | S116: 19.9 | T116: 9.3 | U116: 12
A117: 2020 | B117: 4 | C117: 5 | D117: 19 | E117: 43926.79167 | F117: 9.5 | G117: Valid | H117: 12 | I117: 24.6 | J117: Valid | K117: 20.4 | N117: 9.5 | O117: 12 | P117: 24.6 | Q117: 20.4 | R117: 24.6 | S117: 20.4 | T117: 9.5 | U117: 12
A118: 2020 | B118: 4 | C118: 5 | D118: 20 | E118: 43926.83333 | F118: 5.8 | G118: Valid | H118: 11.9 | I118: 18.1 | J118: Valid | K118: 20.6 | N118: 5.8 | O118: 11.9 | P118: 18.1 | Q118: 20.6 | R118: 18.1 | S118: 20.6 | T118: 5.8 | U118: 11.9
A119: 2020 | B119: 4 | C119: 5 | D119: 21 | E119: 43926.875 | F119: 1.1 | G119: Valid | H119: 11 | I119: 11.5 | J119: Valid | K119: 20 | N119: 1.1 | O119: 11 | P119: 11.5 | Q119: 20 | R119: 11.5 | S119: 20 | T119: 1.1 | U119: 11
A120: 2020 | B120: 4 | C120: 5 | D120: 22 | E120: 43926.91667 | F120: 12.4 | G120: Valid | H120: 10.9 | I120: 24.3 | J120: Valid | K120: 20.4 | N120: 12.4 | O120: 10.9 | P120: 24.3 | Q120: 20.4 | R120: 24.3 | S120: 20.4 | T120: 12.4 | U120: 10.9
A121: 2020 | B121: 4 | C121: 5 | D121: 23 | E121: 43926.95833 | F121: 6 | G121: Valid | H121: 10.3 | I121: 18.8 | J121: Valid | K121: 20.2 | N121: 6 | O121: 10.3 | P121: 18.8 | Q121: 20.2 | R121: 18.8 | S121: 20.2 | T121: 6 | U121: 10.3
A122: 2020 | B122: 4 | C122: 6 | D122: 0 | E122: 43927 | F122: 14.1 | G122: Valid | H122: 10.5 | I122: 24.7 | J122: Valid | K122: 20.8 | N122: 14.1 | O122: 10.5 | P122: 24.7 | Q122: 20.8 | R122: 24.7 | S122: 20.8 | T122: 14.1 | U122: 10.5
A123: 2020 | B123: 4 | C123: 6 | D123: 1 | E123: 43927.04167 | F123: 5.9 | G123: Valid | H123: 10.3 | I123: 16.5 | J123: Valid | K123: 21 | N123: 5.9 | O123: 10.3 | P123: 16.5 | Q123: 21 | R123: 16.5 | S123: 21 | T123: 5.9 | U123: 10.3
A124: 2020 | B124: 4 | C124: 6 | D124: 2 | E124: 43927.08333 | F124: 12.7 | G124: Valid | H124: 10.3 | I124: 21.7 | J124: Valid | K124: 21.3 | N124: 12.7 | O124: 10.3 | P124: 21.7 | Q124: 21.3 | R124: 21.7 | S124: 21.3 | T124: 12.7 | U124: 10.3
A125: 2020 | B125: 4 | C125: 6 | D125: 3 | E125: 43927.125 | F125: 8.4 | G125: Valid | H125: 10.5 | I125: 17.6 | J125: Valid | K125: 21.8 | N125: 8.4 | O125: 10.5 | P125: 17.6 | Q125: 21.8 | R125: 17.6 | S125: 21.8 | T125: 8.4 | U125: 10.5
A126: 2020 | B126: 4 | C126: 6 | D126: 4 | E126: 43927.16667 | F126: 12.9 | G126: Valid | H126: 10.2 | I126: 22.8 | J126: Valid | K126: 21.9 | N126: 12.9 | O126: 10.2 | P126: 22.8 | Q126: 21.9 | R126: 22.8 | S126: 21.9 | T126: 12.9 | U126: 10.2
A127: 2020 | B127: 4 | C127: 6 | D127: 5 | E127: 43927.20833 | F127: 15.7 | G127: Valid | H127: 10.5 | I127: 26.9 | J127: Valid | K127: 22.6 | N127: 15.7 | O127: 10.5 | P127: 26.9 | Q127: 22.6 | R127: 26.9 | S127: 22.6 | T127: 15.7 | U127: 10.5
A128: 2020 | B128: 4 | C128: 6 | D128: 6 | E128: 43927.25 | F128: 14.9 | G128: Valid | H128: 10.6 | I128: 23 | J128: Valid | K128: 23 | N128: 14.9 | O128: 10.6 | P128: 23 | Q128: 23 | R128: 23 | S128: 23 | T128: 14.9 | U128: 10.6
A129: 2020 | B129: 4 | C129: 6 | D129: 7 | E129: 43927.29167 | F129: 9.9 | G129: Valid | H129: 10.8 | I129: 18.7 | J129: Valid | K129: 23.6 | N129: 9.9 | O129: 10.8 | P129: 18.7 | Q129: 23.6 | R129: 18.7 | S129: 23.6 | T129: 9.9 | U129: 10.8
A130: 2020 | B130: 4 | C130: 6 | D130: 8 | E130: 43927.33333 | F130: 7.6 | G130: Valid | H130: 11.1 | I130: 15.4 | J130: Valid | K130: 24.2 | N130: =IF(G130="Valid", F130, NA()) -> 7.6 | O130: =IF(G130="Valid", H130, NA()) -> 11.1 | P130: =IF(J130="Valid", I130, NA()) -> 15.4 | Q130: =IF(J130="Valid", K130, NA()) -> 24.2 | R130: 15.4 | S130: 24.2 | T130: 7.6 | U130: 11.1
A131: 2020 | B131: 4 | C131: 6 | D131: 9 | E131: 43927.375 | F131: 20.5 | G131: Valid | H131: 11.6 | I131: 38.7 | J131: Valid | K131: 25.5 | N131: 20.5 | O131: 11.6 | P131: 38.7 | Q131: 25.5 | R131: 38.7 | S131: 25.5 | T131: 20.5 | U131: 11.6
A132: =A131 -> 2020 | B132: 4 | C132: 6 | D132: =IF(D131=23,0,D131+1) -> 10 | E132: =E131+0.0416666666666666 -> 43927.41667 | F132: 19.8 | G132: Valid | H132: 11.6 | I132: 27 | J132: Valid | K132: 25.6 | N132: 19.8 | O132: 11.6 | P132: 27 | Q132: 25.6 | R132: 27 | S132: 25.6 | T132: 19.8 | U132: 11.6
A133: 2020 | B133: 4 | C133: 6 | D133: 11 | E133: 43927.45833 | F133: 13.9 | G133: Valid | H133: 11.6 | I133: 15.5 | J133: Valid | K133: 25 | N133: 13.9 | O133: 11.6 | P133: 15.5 | Q133: 25 | R133: 15.5 | S133: 25 | T133: 13.9 | U133: 11.6
A134: 2020 | B134: 4 | C134: 6 | D134: 12 | E134: 43927.5 | F134: 16.1 | G134: Valid | H134: 11.4 | I134: 21.9 | J134: Valid | K134: 24.4 | N134: 16.1 | O134: 11.4 | P134: 21.9 | Q134: 24.4 | R134: 21.9 | S134: 24.4 | T134: 16.1 | U134: 11.4
A135: 2020 | B135: 4 | C135: 6 | D135: 13 | E135: 43927.54167 | F135: 24.7 | G135: Valid | H135: 11.3 | I135: 26.4 | J135: Valid | K135: 23.4 | N135: 24.7 | O135: 11.3 | P135: 26.4 | Q135: 23.4 | R135: 26.4 | S135: 23.4 | T135: 24.7 | U135: 11.3
A136: 2020 | B136: 4 | C136: 6 | D136: 14 | E136: 43927.58333 | F136: 2.1 | G136: Valid | H136: 11 | I136: 3.6 | J136: Valid | K136: 22.1 | N136: 2.1 | O136: 11 | P136: 3.6 | Q136: 22.1 | R136: 3.6 | S136: 22.1 | T136: 2.1 | U136: 11
A137: 2020 | B137: 4 | C137: 6 | D137: 15 | E137: 43927.625 | F137: 13 | G137: Valid | H137: 11.4 | I137: 17.7 | J137: Valid | K137: 21.9 | N137: 13 | O137: 11.4 | P137: 17.7 | Q137: 21.9 | R137: 17.7 | S137: 21.9 | T137: 13 | U137: 11.4
A138: 2020 | B138: 4 | C138: 6 | D138: 16 | E138: 43927.66667 | F138: 15.5 | G138: Valid | H138: 11.6 | I138: 20.6 | J138: Valid | K138: 21.5 | N138: 15.5 | O138: 11.6 | P138: 20.6 | Q138: 21.5 | R138: 20.6 | S138: 21.5 | T138: 15.5 | U138: 11.6
A139: 2020 | B139: 4 | C139: 6 | D139: 17 | E139: 43927.70833 | F139: 8.2 | G139: Valid | H139: 11.9 | I139: 9.9 | J139: Valid | K139: 20.9 | N139: 8.2 | O139: 11.9 | P139: 9.9 | Q139: 20.9 | R139: 9.9 | S139: 20.9 | T139: 8.2 | U139: 11.9
A140: 2020 | B140: 4 | C140: 6 | D140: 18 | E140: 43927.75 | F140: 8.6 | G140: Valid | H140: 11.8 | I140: 8.8 | J140: Valid | K140: 20.1 | N140: 8.6 | O140: 11.8 | P140: 8.8 | Q140: 20.1 | R140: 8.8 | S140: 20.1 | T140: 8.6 | U140: 11.8
A141: 2020 | B141: 4 | C141: 6 | D141: 19 | E141: 43927.79167 | F141: 10.6 | G141: Valid | H141: 11.8 | I141: 12.9 | J141: Valid | K141: 19.6 | N141: 10.6 | O141: 11.8 | P141: 12.9 | Q141: 19.6 | R141: 12.9 | S141: 19.6 | T141: 10.6 | U141: 11.8
A142: 2020 | B142: 4 | C142: 6 | D142: 20 | E142: 43927.83333 | F142: 14.9 | G142: Valid | H142: 12.1 | I142: 14.9 | J142: Valid | K142: 19.3 | N142: 14.9 | O142: 12.1 | P142: 14.9 | Q142: 19.3 | R142: 14.9 | S142: 19.3 | T142: 14.9 | U142: 12.1
A143: 2020 | B143: 4 | C143: 6 | D143: 21 | E143: 43927.875 | F143: 10.8 | G143: Valid | H143: 12.5 | I143: 11.4 | J143: Valid | K143: 19.2 | N143: 10.8 | O143: 12.5 | P143: 11.4 | Q143: 19.2 | R143: 11.4 | S143: 19.2 | T143: 10.8 | U143: 12.5
A144: 2020 | B144: 4 | C144: 6 | D144: 22 | E144: 43927.91667 | F144: 13.3 | G144: Valid | H144: 12.5 | I144: 14.9 | J144: Valid | K144: 18.8 | N144: 13.3 | O144: 12.5 | P144: 14.9 | Q144: 18.8 | R144: 14.9 | S144: 18.8 | T144: 13.3 | U144: 12.5
A145: 2020 | B145: 4 | C145: 6 | D145: 23 | E145: 43927.95833 | F145: 11 | G145: Valid | H145: 12.6 | I145: 12.6 | J145: Valid | K145: 18.4 | N145: 11 | O145: 12.6 | P145: 12.6 | Q145: 18.4 | R145: 12.6 | S145: 18.4 | T145: 11 | U145: 12.6
A146: 2020 | B146: 4 | C146: 7 | D146: 0 | E146: 43928 | F146: 2.4 | G146: Valid | H146: 12.1 | I146: 3.7 | J146: Valid | K146: 17.5 | N146: 2.4 | O146: 12.1 | P146: 3.7 | Q146: 17.5 | R146: 3.7 | S146: 17.5 | T146: 2.4 | U146: 12.1
A147: 2020 | B147: 4 | C147: 7 | D147: 1 | E147: 43928.04167 | F147: 4.8 | G147: Valid | H147: 12 | I147: 5.6 | J147: Valid | K147: 17 | N147: 4.8 | O147: 12 | P147: 5.6 | Q147: 17 | R147: 5.6 | S147: 17 | T147: 4.8 | U147: 12
A148: 2020 | B148: 4 | C148: 7 | D148: 2 | E148: 43928.08333 | F148: 21.2 | G148: Valid | H148: 12.4 | I148: 24.6 | J148: Valid | K148: 17.1 | N148: 21.2 | O148: 12.4 | P148: 24.6 | Q148: 17.1 | R148: 24.6 | S148: 17.1 | T148: 21.2 | U148: 12.4
A149: 2020 | B149: 4 | C149: 7 | D149: 3 | E149: 43928.125 | F149: 9.1 | G149: Valid | H149: 12.3 | I149: 11.2 | J149: Valid | K149: 16.8 | N149: 9.1 | O149: 12.3 | P149: 11.2 | Q149: 16.8 | R149: 11.2 | S149: 16.8 | T149: 9.1 | U149: 12.3
A150: 2020 | B150: 4 | C150: 7 | D150: 4 | E150: 43928.16667 | F150: 30.6 | G150: Valid | H150: 13.1 | I150: 38.1 | J150: Valid | K150: 17.4 | N150: 30.6 | O150: 13.1 | P150: 38.1 | Q150: 17.4 | R150: 38.1 | S150: 17.4 | T150: 30.6 | U150: 13.1
A151: 2020 | B151: 4 | C151: 7 | D151: 5 | E151: 43928.20833 | F151: 12.2 | G151: Valid | H151: 12.9 | I151: 14.1 | J151: Valid | K151: 16.9 | N151: 12.2 | O151: 12.9 | P151: 14.1 | Q151: 16.9 | R151: 14.1 | S151: 16.9 | T151: 12.2 | U151: 12.9
A152: 2020 | B152: 4 | C152: 7 | D152: 6 | E152: 43928.25 | F152: 14.6 | G152: Valid | H152: 12.9 | I152: 14.9 | J152: Valid | K152: 16.5 | N152: 14.6 | O152: 12.9 | P152: 14.9 | Q152: 16.5 | R152: 14.9 | S152: 16.5 | T152: 14.6 | U152: 12.9
A153: 2020 | B153: 4 | C153: 7 | D153: 7 | E153: 43928.29167 | F153: 19.5 | G153: Valid | H153: 13.4 | I153: 20.3 | J153: Valid | K153: 16.6 | N153: 19.5 | O153: 13.4 | P153: 20.3 | Q153: 16.6 | R153: 20.3 | S153: 16.6 | T153: 19.5 | U153: 13.4
A154: 2020 | B154: 4 | C154: 7 | D154: 8 | E154: 43928.33333 | F154: 15.6 | G154: Valid | H154: 13.8 | I154: 16.1 | J154: Valid | K154: 16.8 | N154: 15.6 | O154: 13.8 | P154: 16.1 | Q154: 16.8 | R154: 16.1 | S154: 16.8 | T154: 15.6 | U154: 13.8
A155: 2020 | B155: =B154 -> 4 | C155: =C131+1 -> 7 | D155: 9 | E155: 43928.375 | F155: 12.9 | G155: Valid | H155: 13.7 | I155: 20.5 | J155: Valid | K155: 16.2 | N155: 12.9 | O155: 13.7 | P155: 20.5 | Q155: 16.2 | R155: 20.5 | S155: 16.2 | T155: 12.9 | U155: 13.7
A156: 2020 | B156: 4 | C156: 7 | D156: 10 | E156: 43928.41667 | F156: 15.2 | G156: Valid | H156: 13.5 | I156: 16 | J156: Valid | K156: 15.9 | N156: 15.2 | O156: 13.5 | P156: 16 | Q156: 15.9 | R156: 16 | S156: 15.9 | T156: 15.2 | U156: 13.5
A157: 2020 | B157: 4 | C157: 7 | D157: 11 | E157: 43928.45833 | F157: 39.3 | G157: Valid | H157: 14.6 | I157: 41 | J157: Valid | K157: 17 | N157: 39.3 | O157: 14.6 | P157: 41 | Q157: 17 | R157: 41 | S157: 17 | T157: 39.3 | U157: 14.6
A158: 2020 | B158: 4 | C158: 7 | D158: 12 | E158: 43928.5 | F158: 14.2 | G158: Valid | H158: 14.6 | I158: 15.9 | J158: Valid | K158: 16.8 | N158: 14.2 | O158: 14.6 | P158: 15.9 | Q158: 16.8 | R158: 15.9 | S158: 16.8 | T158: 14.2 | U158: 14.6
A159: 2020 | B159: 4 | C159: 7 | D159: 13 | E159: 43928.54167 | F159: -0.7 | G159: Valid | H159: 13.6 | I159: 4.3 | J159: Valid | K159: 15.9 | N159: -0.7 | O159: 13.6 | P159: 4.3 | Q159: 15.9 | R159: 4.3 | S159: 15.9 | T159: -0.7 | U159: 13.6
A160: 2020 | B160: 4 | C160: 7 | D160: 14 | E160: 43928.58333 | F160: 24.9 | G160: Valid | H160: 14.6 | I160: 25.2 | J160: Valid | K160: 16.9 | N160: 24.9 | O160: 14.6 | P160: 25.2 | Q160: 16.9 | R160: 25.2 | S160: 16.9 | T160: 24.9 | U160: 14.6
A161: 2020 | B161: 4 | C161: 7 | D161: 15 | E161: 43928.625 | F161: =NA() ->  | G161: Invalid | H161: =NA() ->  | I161: =NA() ->  | J161: Invalid | K161: =NA() ->  | L161: Power failure | M161: no data
A162: 2020 | B162: 4 | C162: 7 | D162: 16 | E162: 43928.66667 | F162: =NA() ->  | G162: Invalid | H162: =NA() ->  | I162: =NA() ->  | J162: Invalid | K162: =NA() ->  | L162: Power failure | M162: no data
A163: 2020 | B163: 4 | C163: 7 | D163: 17 | E163: 43928.70833 | F163: =NA() ->  | G163: Invalid | H163: =NA() ->  | I163: =NA() ->  | J163: Invalid | K163: =NA() ->  | L163: Power failure | M163: no data
A164: 2020 | B164: 4 | C164: 7 | D164: 18 | E164: 43928.75 | F164: 9.8 | G164: Valid | H164: 13.3 | I164: 11.8 | J164: Valid | K164: 15.2 | N164: 9.8 | O164: 13.3 | P164: 11.8 | Q164: 15.2 | R164: 11.8 | S164: 15.2 | T164: 9.8 | U164: 13.3
A165: 2020 | B165: 4 | C165: 7 | D165: 19 | E165: 43928.79167 | F165: 15.2 | G165: Valid | H165: 13.5 | I165: 16.2 | J165: Valid | K165: 15.4 | N165: 15.2 | O165: 13.5 | P165: 16.2 | Q165: 15.4 | R165: 16.2 | S165: 15.4 | T165: 15.2 | U165: 13.5
A166: 2020 | B166: 4 | C166: 7 | D166: 20 | E166: 43928.83333 | F166: =NA() ->  | G166: Invalid | H166: =NA() ->  | I166: =NA() ->  | J166: Invalid | K166: =NA() ->  | L166: Calibration Error | M166: value outside range
A167: 2020 | B167: 4 | C167: 7 | D167: 21 | E167: 43928.875 | F167: =NA() ->  | G167: Invalid | H167: =NA() ->  | I167: =NA() ->  | J167: Invalid | K167: =NA() ->  | L167: Calibration Error | M167: value outside range
A168: 2020 | B168: 4 | C168: 7 | D168: 22 | E168: 43928.91667 | F168: =NA() ->  | G168: Invalid | H168: =NA() ->  | I168: =NA() ->  | J168: Invalid | K168: =NA() ->  | L168: Calibration Error | M168: value outside range
A169: 2020 | B169: 4 | C169: 7 | D169: 23 | E169: 43928.95833 | F169: =NA() ->  | G169: Invalid | H169: =NA() ->  | I169: =NA() ->  | J169: Invalid | K169: =NA() ->  | L169: Calibration Error | M169: value outside range
A170: 2020 | B170: 4 | C170: 8 | D170: 0 | E170: 43929 | F170: =NA() ->  | G170: Invalid | H170: =NA() ->  | I170: =NA() ->  | J170: Invalid | K170: =NA() ->  | L170: Calibration Error | M170: value outside range
A171: 2020 | B171: 4 | C171: 8 | D171: 1 | E171: 43929.04167 | F171: =NA() ->  | G171: Invalid | H171: =NA() ->  | I171: =NA() ->  | J171: Invalid | K171: =NA() ->  | L171: Calibration Error | M171: value outside range
A172: 2020 | B172: 4 | C172: 8 | D172: 2 | E172: 43929.08333 | F172: =NA() ->  | G172: Invalid | H172: =NA() ->  | I172: =NA() ->  | J172: Invalid | K172: =NA() ->  | L172: Calibration Error | M172: value outside range
A173: 2020 | B173: 4 | C173: 8 | D173: 3 | E173: 43929.125 | F173: =NA() ->  | G173: Invalid | H173: =NA() ->  | I173: =NA() ->  | J173: Invalid | K173: =NA() ->  | L173: Calibration Error | M173: value outside range
A174: 2020 | B174: 4 | C174: 8 | D174: 4 | E174: 43929.16667 | F174: =NA() ->  | G174: Invalid | H174: =NA() ->  | I174: =NA() ->  | J174: Invalid | K174: =NA() ->  | L174: Calibration Error | M174: value outside range
A175: 2020 | B175: 4 | C175: 8 | D175: 5 | E175: 43929.20833 | F175: =NA() ->  | G175: Invalid | H175: =NA() ->  | I175: =NA() ->  | J175: Invalid | K175: =NA() ->  | L175: Calibration Error | M175: value outside range
A176: 2020 | B176: 4 | C176: 8 | D176: 6 | E176: 43929.25 | F176: =NA() ->  | G176: Invalid | H176: =NA() ->  | I176: =NA() ->  | J176: Invalid | K176: =NA() ->  | L176: Calibration Error | M176: value outside range
A177: 2020 | B177: 4 | C177: 8 | D177: 7 | E177: 43929.29167 | F177: =NA() ->  | G177: Invalid | H177: =NA() ->  | I177: =NA() ->  | J177: Invalid | K177: =NA() ->  | L177: Calibration Error | M177: value outside range
A178: 2020 | B178: 4 | C178: 8 | D178: 8 | E178: 43929.33333 | F178: 24.8 | G178: Valid | H178: 11.6 | I178: 26.8 | J178: Valid | K178: 11.9 | N178: 24.8 | O178: 11.6 | P178: 26.8 | Q178: 11.9 | R178: 26.8 | S178: 11.9 | T178: 24.8 | U178: 11.6
A179: 2020 | B179: 4 | C179: 8 | D179: 9 | E179: 43929.375 | F179: 11.8 | G179: Valid | H179: 11.6 | I179: 32.3 | J179: Valid | K179: 12.4 | N179: 11.8 | O179: 11.6 | P179: 32.3 | Q179: 12.4 | R179: 32.3 | S179: 12.4 | T179: 11.8 | U179: 11.6
A180: 2020 | B180: 4 | C180: 8 | D180: 10 | E180: 43929.41667 | F180: 13.4 | G180: Valid | H180: 11.5 | I180: 20.1 | J180: Valid | K180: 12.6 | N180: 13.4 | O180: 11.5 | P180: 20.1 | Q180: 12.6 | R180: 20.1 | S180: 12.6 | T180: 13.4 | U180: 11.5
A181: 2020 | B181: 4 | C181: 8 | D181: 11 | E181: 43929.45833 | F181: =NA() ->  | G181: Invalid | H181: =NA() ->  | I181: =NA() ->  | J181: Invalid | K181: =NA() ->  | L181: Calibration Error | M181: value outside range
A182: 2020 | B182: 4 | C182: 8 | D182: 12 | E182: 43929.5 | F182: =NA() ->  | G182: Invalid | H182: =NA() ->  | I182: =NA() ->  | J182: Invalid | K182: =NA() ->  | L182: Calibration Error | M182: value outside range
A183: 2020 | B183: 4 | C183: 8 | D183: 13 | E183: 43929.54167 | F183: =NA() ->  | G183: Invalid | H183: =NA() ->  | I183: =NA() ->  | J183: Invalid | K183: =NA() ->  | L183: Calibration Error | M183: value outside range
A184: 2020 | B184: 4 | C184: 8 | D184: 14 | E184: 43929.58333 | F184: 8.9 | G184: Valid | H184: 10.4 | I184: 11.6 | J184: Valid | K184: 11.2 | N184: 8.9 | O184: 10.4 | P184: 11.6 | Q184: 11.2 | R184: 11.6 | S184: 11.2 | T184: 8.9 | U184: 10.4
A185: 2020 | B185: 4 | C185: 8 | D185: 15 | E185: 43929.625 | F185: 5.5 | G185: Valid | H185: 10.2 | I185: 7.3 | J185: Valid | K185: 11 | N185: 5.5 | O185: 10.2 | P185: 7.3 | Q185: 11 | R185: 7.3 | S185: 11 | T185: 5.5 | U185: 10.2
A186: 2020 | B186: 4 | C186: 8 | D186: 16 | E186: 43929.66667 | F186: 18.6 | G186: Valid | H186: 10.5 | I186: 21.6 | J186: Valid | K186: 11.4 | N186: 18.6 | O186: 10.5 | P186: 21.6 | Q186: 11.4 | R186: 21.6 | S186: 11.4 | T186: 18.6 | U186: 10.5
A187: 2020 | B187: 4 | C187: 8 | D187: 17 | E187: 43929.70833 | F187: 0.2 | G187: Valid | H187: 10.5 | I187: 5.1 | J187: Valid | K187: 11.5 | N187: 0.2 | O187: 10.5 | P187: 5.1 | Q187: 11.5 | R187: 5.1 | S187: 11.5 | T187: 0.2 | U187: 10.5
A188: 2020 | B188: 4 | C188: 8 | D188: 18 | E188: 43929.75 | F188: 13.4 | G188: Valid | H188: 10.5 | I188: 18 | J188: Valid | K188: 11.7 | N188: 13.4 | O188: 10.5 | P188: 18 | Q188: 11.7 | R188: 18 | S188: 11.7 | T188: 13.4 | U188: 10.5
A189: 2020 | B189: 4 | C189: 8 | D189: 19 | E189: 43929.79167 | F189: 19.2 | G189: Valid | H189: 10.7 | I189: 21.9 | J189: Valid | K189: 11.9 | N189: 19.2 | O189: 10.7 | P189: 21.9 | Q189: 11.9 | R189: 21.9 | S189: 11.9 | T189: 19.2 | U189: 10.7
A190: 2020 | B190: 4 | C190: 8 | D190: 20 | E190: 43929.83333 | F190: 5.2 | G190: Valid | H190: 10.4 | I190: 6 | J190: Valid | K190: 11.6 | N190: 5.2 | O190: 10.4 | P190: 6 | Q190: 11.6 | R190: 6 | S190: 11.6 | T190: 5.2 | U190: 10.4
A191: 2020 | B191: 4 | C191: 8 | D191: 21 | E191: 43929.875 | F191: =NA() ->  | G191: Invalid | H191: =NA() ->  | I191: =NA() ->  | J191: Invalid | K191: =NA() ->  | L191: Calibration Error | M191: value outside range
A192: 2020 | B192: 4 | C192: 8 | D192: 22 | E192: 43929.91667 | F192: =NA() ->  | G192: Invalid | H192: =NA() ->  | I192: =NA() ->  | J192: Invalid | K192: =NA() ->  | L192: Calibration Error | M192: value outside range
A193: 2020 | B193: 4 | C193: 8 | D193: 23 | E193: 43929.95833 | F193: =NA() ->  | G193: Invalid | H193: =NA() ->  | I193: =NA() ->  | J193: Invalid | K193: =NA() ->  | L193: Calibration Error | M193: value outside range
A194: 2020 | B194: 4 | C194: 9 | D194: 0 | E194: 43930 | F194: =NA() ->  | G194: Invalid | H194: =NA() ->  | I194: =NA() ->  | J194: Invalid | K194: =NA() ->  | L194: Calibration Error | M194: value outside range | N194: =IF(G194="Valid", F194, NA()) ->  | O194: =IF(G194="Valid", H194, NA()) ->  | P194: =IF(J194="Valid", I194, NA()) ->  | Q194: =IF(J194="Valid", K194, NA()) -> 
A195: 2020 | B195: 4 | C195: 9 | D195: 1 | E195: 43930.04167 | F195: =NA() ->  | G195: Invalid | H195: =NA() ->  | I195: =NA() ->  | J195: Invalid | K195: =NA() ->  | L195: Calibration Error | M195: value outside range
A196: =A195 -> 2020 | B196: 4 | C196: 9 | D196: =IF(D195=23,0,D195+1) -> 2 | E196: =E195+0.0416666666666666 -> 43930.08333 | F196: =NA() ->  | G196: Invalid | H196: =NA() ->  | I196: =NA() ->  | J196: Invalid | K196: =NA() ->  | L196: Calibration Error | M196: value outside range
A197: 2020 | B197: 4 | C197: 9 | D197: 3 | E197: 43930.125 | F197: =NA() ->  | G197: Invalid | H197: =NA() ->  | I197: =NA() ->  | J197: Invalid | K197: =NA() ->  | L197: Calibration Error | M197: value outside range
A198: 2020 | B198: 4 | C198: 9 | D198: 4 | E198: 43930.16667 | F198: =NA() ->  | G198: Invalid | H198: =NA() ->  | I198: =NA() ->  | J198: Invalid | K198: =NA() ->  | L198: Calibration Error | M198: value outside range
A199: 2020 | B199: 4 | C199: 9 | D199: 5 | E199: 43930.20833 | F199: =NA() ->  | G199: Invalid | H199: =NA() ->  | I199: =NA() ->  | J199: Invalid | K199: =NA() ->  | L199: Calibration Error | M199: value outside range
A200: 2020 | B200: 4 | C200: 9 | D200: 6 | E200: 43930.25 | F200: =NA() ->  | G200: Invalid | H200: =NA() ->  | I200: =NA() ->  | J200: Invalid | K200: =NA() ->  | L200: Calibration Error | M200: value outside range
... 545 more rows

Sheet Raw data_format
A1: Parameter | B1: Format | C1: Comment | D1: Units of measure | E1: Minimum | F1: Maximum
A2: Year | B2: yyyy | C2: 4 integer format | D2: Not applicable | E2: 2015 | F2: Until reporting ceases
A3: Month | B3: mm | C3: 2 integer format | D3: Not applicable | E3: 1 | F3: 12
A4: Day | B4: dd | C4: 2 integer format | D4: Not applicable | E4: 1 | F4: 31
A5: Hour | B5: hh | C5: 2 integer format | D5: Not applicable | E5: 0 | F5: 23
A6: PM10 | B6: 0 | C6: 1 decimal place resolution | D6: µg/m3 | E6: Negative | F6: Instrument specific
A7: PM2.5 | B7: 0 | C7: 2 decimal place resolution | D7: µg/m3 | E7: Negative | F7: Instrument specific
A8: Status | B8: Text | C8: 7 character format | D8: Not applicable | E8: Valid | F8: Invalid
